[Event "45th FIDE Olympiad 2024"]
[Site "Budapest"]
[Date "2024.09.12"]
[Round "2.36"]
[White "McShane, Luke J"]
[Black "Ibarra Chami, Luis Fernando"]
[Result "1-0"]
[ECO "B30"]
[WhiteElo "2611"]
[BlackElo "2427"]
[Annotator "TA"]
[PlyCount "91"]
[EventDate "2024.09.05"]
[EventType "team-tourn"]
[EventCountry "HUN"]
[SourceTitle "playchess.com"]
[Source "ChessBase"]
[SourceQuality "1"]
[WhiteTeam "England"]
[BlackTeam "Mexico"]
[WhiteTeamCountry "ENG"]
[BlackTeamCountry "MEX"]
[TimeControl "40/5400+30:1800+30"]

{[%evp 9,91,27,35,18,29,16,25,33,29,9,27,-12,-14,-8,0,1,21,11,35,41,69,61,81,42,64,72,83,58,52,68,41,66,77,41,104,83,81,46,148,162,154,170,195,212,256,258,256,256,274,238,281,279,418,406,433,442,437,419,402,343,360,347,552,537,548,547,555,538,501,0,508,509,695,688,690,718,750,763,731,726,661,568,739,731]} 1. e4 {[%emt 0:00:05]} c5 {[%emt 0:00:12]} 2. Nf3 {[%emt 0:00:07]} Nc6 {[%emt 0:00:07]} 3. Bb5 {[%emt 0:00:06]} Nf6 {[%emt 0:01:31]} 4. Bxc6 {[%emt 0:00:56]} dxc6 {[%emt 0:00:14]} 5. d3 {[%emt 0:00:08]} Qc7 {[%emt 0:02:26]} 6. Nbd2 {[%emt 0:04:44][%cal Bb1d2,Bd2c4,Bc4e3][%mdl 32]} e5 {[%emt 0:01:30]} 7. Nc4 {[%emt 0:00:58]} Be6 {[%emt 0:03:13]} 8. b3 {[%emt 0:01:48] White has an edge.} (8. Ncxe5 Bd6 9. Nc4 (9. Bf4 Nh5 $17) 9... Bxc4 $15) (8. Nfxe5 $2 b5 9. b3 bxc4 10. Nxc4 Bxc4 11. bxc4 Bd6 $19) 8... Nd7 {[%emt 0:09:14]} 9. Ne3 {[%emt 0:04:16]} Be7 {[%emt 0:02:39]} 10. g4 {[%emt 0:01:25]} O-O-O {[%emt 0:08:44]} 11. h4 {[%emt 0:03:13]} h6 {[%emt 0:17:27]} 12. Qe2 {[%emt 0:02:15]} g6 {[%emt 0:19:39]} 13. Bb2 {[%emt 0:04:19]} Qa5+ {[%emt 0:01:31]} 14. Qd2 {[%emt 0:01:50]} Qxd2+ {[%emt 0:00:58]} 15. Kxd2 {[%emt 0:00:22]} Bd6 {[%emt 0:01:39]} 16. g5 {[%emt 0:08:39]} Rdf8 {[%emt 0:17:14]} 17. Rag1 {[%emt 0:03:07] White is more active.} f6 {[%emt 0:01:21]} 18. gxf6 {[%emt 0:01:51]} Rxf6 {[%emt 0:00:07]} 19. Ke2 {[%emt 0:01:14]} Rhf8 {[%emt 0:04:43]} 20. Rg3 {[%emt 0:00:14]} b5 {[%emt 0:01:53][%cal Oc5c4]} 21. Rh2 {[%emt 0:02:05]} c4 {[%emt 0:00:39]} 22. dxc4 $16 {[%emt 0:13:11]} bxc4 {[%emt 0:00:04]} 23. Rhg2 {[%emt 0:00:39]} Nc5 {[%emt 0:00:57] White now steadily converts the win.} ({Better is} 23... cxb3 $14 24. axb3 Bf7) 24. Nd2 {[%emt 0:02:36]} cxb3 {[%emt 0:00:39]} 25. axb3 {[%emt 0:00:11]} h5 {[%emt 0:02:25]} (25... Rf4 $2 26. Rxg6 Rd8 27. Rxh6 $18) 26. f3 {[%emt 0:17:35]} Nd7 {[%emt 0:00:37]} ({Don't blunder} 26... Rf4 $2 27. Rxg6 Re8 28. Ndc4 $18 (28. Nec4 Bc7 $18)) 27. Rxg6 {[%emt 0:01:27]} Be7 {[%emt 0:01:21]} 28. Rg7 {[%emt 0:10:04]} R6f7 {[%emt 0:00:33]} 29. Rxf7 {[%emt 0:00:20]} Rxf7 {[%emt 0:00:06]} 30. Ndc4 {[%emt 0:04:40]} Rf4 {[%emt 0:01:06]} (30... Rh7 {was worth a try.} 31. Nxe5 (31. Bxe5 Bxh4 32. Nd6+ Kd8 $18) 31... Nxe5 32. Bxe5 Bxh4) 31. Nxe5 $18 {[%emt 0:02:43]} Nxe5 {[%emt 0:00:04]} 32. Bxe5 {[%emt 0:00:04]} Rxh4 {[%emt 0:00:06]} 33. Rg7 {[%emt 0:00:09]} Kd8 {[%emt 0:01:08]} 34. Rh7 {[%emt 0:01:48]} Rh1 {[%emt 0:00:52]} 35. f4 {[%emt 0:01:38][%cal Bf3f4,Bf4f5][%mdl 32]} Ke8 {[%emt 0:00:09]} (35... Bc8 {was called for.} 36. f5 (36. Rh8+ Kd7 $18) 36... Rh4) 36. Rh8+ {[%emt 0:01:21]} Kd7 {[%emt 0:00:34]} 37. f5 {[%emt 0:03:04][%cal Oh8h7] [#] Black must now prevent Rh7!} Bf7 {[%emt 0:00:03]} 38. Rh7 {[%emt 0:00:17]} Ke8 {[%emt 0:00:04]} 39. Rh8+ {[%emt 0:00:52]} Kd7 {[%emt 0:00:05]} 40. Bf4 {[%emt 0:01:05] White is clearly winning.} Rh4 {[%emt 0:01:52]} 41. Kf3 {[%emt 0:30:31]} Rh3+ {[%emt 0:06:17]} 42. Kg2 {[%emt 0:00:00]} Rh4 {[%emt 0:03:08] [#]} 43. Kg3 $1 {[%emt 0:00:00]} Rh1 {[%emt 0:00:05]} 44. e5 {[%emt 0:00:00]} Rg1+ {[%emt 0:01:52]} 45. Kf2 {[%emt 0:00:00]} Rg8 {[%emt 0:00:04]} 46. Rh7 {[%emt 0:00:00] Weighted Error Value: White=0.23 (precise) /Black=0.30.  Mistake:       	---       	Black=4      Inaccurate:     	White=4     	Black=2      OK:         	White=21    	Black=11     Best:        	---       	Black=1} 1-0

[Event "45th FIDE Olympiad 2024"]
[Site "Budapest"]
[Date "2024.09.12"]
[Round "2.36"]
[White "Francis, Nigel"]
[Black "Akmal, Ahmad"]
[Result "1-0"]
[ECO "B48"]
[WhiteElo "1775"]
[BlackElo "1830"]
[Annotator "NA"]
[PlyCount "65"]
[EventDate "2024.09.05"]
[EventType "team-tourn"]
[EventCountry "HUN"]
[SourceTitle "playchess.com"]
[Source "ChessBase"]
[SourceQuality "1"]
[WhiteTeam "Dominica"]
[BlackTeam "Brunei Darussalam"]
[WhiteTeamCountry "DMA"]
[TimeControl "40/5400+30:1800+30"]

1. e4 c5 2. Nf3 e6 3. d4 cxd4 4. Nxd4 Nc6 5. Be3 Qc7 6. Nc3 a6 7. a3 Nf6 8. Be2 Be7 9. O-O O-O 10. f4 d6 11. Nb3 b5 12. Qd2 Bb7 13. Bf3 Rac8 14. Rac1 Nd7 15. Rfd1 Nb6 16. Be2 Nc4 17. Bxc4 bxc4 18. Nd4 Qa5 19. Nxc6 Bxc6 20. Nd5 Qd8 21. Nxe7+ Qxe7 22. Qxd6 Qh4 23. Qe5 Rfe8 24. Rd4 f6 25. Qa5 e5 26. Rxc4 exf4 27. Bf2 Qg4 28. h3 Qe2 29. Qc3 Bb7 30. Rxc8 Rxc8 31. Qb3+ Rc4 32. Qxb7 Rxc2 33. Qb3+ 1-0

[Event "45th FIDE Olympiad 2024"]
[Site "Budapest"]
[Date "2024.09.12"]
[Round "2.37"]
[White "Ferreira, Jorge Viterbo"]
[Black "Tabatabaei, M. Amin"]
[Result "1/2-1/2"]
[ECO "B51"]
[WhiteElo "2535"]
[BlackElo "2714"]
[Annotator "TA"]
[PlyCount "73"]
[EventDate "2024.09.05"]
[EventType "team-tourn"]
[EventCountry "HUN"]
[SourceTitle "playchess.com"]
[Source "ChessBase"]
[SourceQuality "1"]
[WhiteTeam "Portugal"]
[BlackTeam "Iran"]
[WhiteTeamCountry "POR"]
[BlackTeamCountry "IRI"]
[TimeControl "40/5400+30:1800+30"]

{[%evp 9,73,0,0,0,0,0,8,0,0,0,0,0,2,0,0,7,14,4,39,39,40,43,58,49,31,27,111,112,100,66,73,78,73,29,39,27,25,19,22,22,14,0,0,0,0,0,0,2,10,0,44,49,54,72,69,76,65,41,43,37,37,50,45,22,22,22]} 1. e4 {[%emt 0:00:03]} c5 {[%emt 0:00:22]} 2. Nf3 {[%emt 0:00:09]} d6 {[%emt 0:00:09]} 3. Bb5+ {[%emt 0:00:09]} Nd7 {[%emt 0:00:35]} 4. d4 {[%emt 0:00:17]} cxd4 {[%emt 0:00:11]} 5. Nxd4 {[%emt 0:00:10]} Ngf6 {[%emt 0:00:28]} 6. Bd3 {[%emt 0:00:12]} Nc5 {[%emt 0:00:50]} 7. Nc3 {[%emt 0:00:10]} a6 {[%emt 0:00:18]} 8. Bg5 {[%emt 0:01:07]} e6 {[%emt 0:02:40]} 9. Nb3 {[%emt 0:01:38]} Ncd7 {[%emt 0:02:57]} 10. a4 {[%emt 0:25:14]} b6 {[%emt 0:01:50]} 11. O-O {[%emt 0:05:32]} Be7 {[%emt 0:00:28]} 12. f4 {[%emt 0:07:30]} h6 {[%emt 0:13:23]} 13. Bh4 {[%emt 0:00:45]} e5 {[%emt 0:00:19]} 14. fxe5 {[%emt 0:20:27]} Nxe5 {[%emt 0:03:48]} 15. Nd4 {[%emt 0:02:47]} O-O {[%emt 0:02:03]} 16. Nf5 {[%emt 0:03:02]} Bxf5 {[%emt 0:00:42]} 17. Rxf5 {[%emt 0:00:18]} Nd5 {[%emt 0:05:10]} 18. Nxd5 $16 {[%emt 0:02:27]} Bxh4 {[%emt 0:00:12]} 19. Qe2 {[%emt 0:01:26]} g6 {[%emt 0:22:22]} 20. Rff1 {[%emt 0:00:31] White has more active pieces.} Qc8 {[%emt 0:00:38]} 21. Qe3 {[%emt 0:05:02]} (21. Nxb6 $2 {too greedy.} Qc5+ 22. Kh1 Qxb6 $19) 21... Qc5 {[%emt 0:14:31]} 22. Qxc5 {[%emt 0:00:54]} bxc5 {[%emt 0:00:14]} 23. Be2 {[%emt 0:00:36]} Kg7 {[%emt 0:03:47]} 24. c3 {[%emt 0:06:12]} a5 {[%emt 0:07:47]} 25. b3 {[%emt 0:09:48]} Bg5 {[%emt 0:01:57]} 26. g3 {[%emt 0:00:24]} h5 {[%emt 0:00:40]} 27. h4 {[%emt 0:00:26]} Bh6 {[%emt 0:00:33]} 28. Bb5 {[%emt 0:01:00]} Ra7 {[%emt 0:02:29]} 29. Nb6 {[%emt 0:01:43]} f5 {[%emt 0:06:25]} 30. exf5 {[%emt 0:01:07]} gxf5 {[%emt 0:00:01]} 31. Rad1 {[%emt 0:00:39]} Kh7 {[%emt 0:02:28]} 32. Rxd6 {[%emt 0:01:07] Nd5 is the strong threat.} Rg7 {[%emt 0:00:51]} 33. Nd7 {[%emt 0:00:39]} Nxd7 {[%emt 0:00:38]} 34. Rxd7 {[%emt 0:00:07]} Rxd7 {[%emt 0:00:53]} 35. Bxd7 {[%emt 0:00:06]} f4 {[%emt 0:00:03]} 36. gxf4 {[%emt 0:00:37]} Rxf4 {[%emt 0:00:21]} 37. Rxf4 {[%emt 0:00:07] Weighted Error Value: White=0.08 (flawless) /Black=0.08 (flawless) .  Mistake:       	---       	Black=1      Inaccurate:     	White=2     	Black=2      OK:         	White=9     	Black=17     Best:        	White=2     	Black=2} 1/2-1/2

[Event "45th FIDE Olympiad 2024"]
[Site "Budapest"]
[Date "2024.09.12"]
[Round "2.37"]
[White "Sihlongonyane, Sikhanyiso"]
[Black "Mfune, Petros"]
[Result "1/2-1/2"]
[ECO "B01"]
[WhiteElo "1813"]
[BlackElo "1986"]
[Annotator "NA"]
[PlyCount "81"]
[EventDate "2024.09.05"]
[EventType "team-tourn"]
[EventCountry "HUN"]
[SourceTitle "playchess.com"]
[Source "ChessBase"]
[SourceQuality "1"]
[WhiteTeam "Eswatini"]
[BlackTeam "Malawi"]
[BlackTeamCountry "MWI"]
[TimeControl "40/5400+30:1800+30"]

1. e4 d5 2. exd5 Nf6 3. d4 Nxd5 4. h3 e6 5. Nf3 c5 6. c3 cxd4 7. cxd4 Bb4+ 8. Bd2 Nc6 9. Nc3 Nf6 10. a3 Ba5 11. Bb5 O-O 12. Bxc6 bxc6 13. O-O Bc7 14. Re1 Rb8 15. b4 a5 16. Na4 Ba6 17. Qc2 axb4 18. axb4 Bb5 19. Nc5 Qd5 20. Na6 Bxa6 21. Rxa6 Rb6 22. Ra5 Qd7 23. Rc5 Nd5 24. Rc1 Rc8 25. Ne5 Bxe5 26. dxe5 Ne7 27. Be1 h6 28. Rd1 Nd5 29. Rc1 Qb7 30. g3 Rc7 31. b5 Rxb5 32. Rxc6 Rxc6 33. Qxc6 Qxc6 34. Rxc6 Rb1 35. Kf1 Kf8 36. Ke2 Ke7 37. h4 Kd7 38. Rd6+ Ke7 39. Rc6 Kd7 40. Rd6+ Ke7 41. Rc6 1/2-1/2

[Event "45th FIDE Olympiad 2024"]
[Site "Budapest"]
[Date "2024.09.12"]
[Round "2.38"]
[White "Daneshvar, Bardiya"]
[Black "Pereira, Ruben"]
[Result "1-0"]
[ECO "D35"]
[WhiteElo "2598"]
[BlackElo "2457"]
[Annotator "RC"]
[PlyCount "183"]
[EventDate "2024.09.05"]
[EventType "team-tourn"]
[EventCountry "HUN"]
[SourceTitle "playchess.com"]
[Source "ChessBase"]
[SourceQuality "1"]
[WhiteTeam "Iran"]
[BlackTeam "Portugal"]
[WhiteTeamCountry "IRI"]
[BlackTeamCountry "POR"]
[TimeControl "40/5400+30:1800+30"]

1. c4 {[%emt 0:00:02]} e6 {[%emt 0:00:36]} 2. Nc3 {[%emt 0:00:12]} d5 {[%emt 0:00:46]} 3. d4 {[%emt 0:00:17]} Nf6 {[%emt 0:00:23]} 4. cxd5 {[%emt 0:00:12]} exd5 {[%emt 0:00:07]} 5. Bg5 {[%emt 0:00:04]} c6 {[%emt 0:00:54]} 6. e3 {[%emt 0:03:38]} h6 {[%emt 0:01:19]} 7. Bh4 {[%emt 0:00:18]} Be7 {[%emt 0:00:30]} 8. Bd3 {[%emt 0:00:06]} O-O {[%emt 0:00:52]} 9. h3 {[%emt 0:00:13]} Ne8 {[%emt 0:03:41]} 10. Bg3 {[%emt 0:00:31]} Nd6 {[%emt 0:00:42]} 11. Nf3 {[%emt 0:02:04]} Be6 {[%emt 0:04:50]} 12. O-O {[%emt 0:00:20]} Nd7 {[%emt 0:00:19]} 13. Rc1 {[%emt 0:01:50]} Re8 {[%emt 0:02:02]} 14. Qb3 {[%emt 0:02:30]} Nb6 {[%emt 0:11:57]} 15. Rfd1 {[%emt 0:03:06]} Ne4 {[%emt 0:17:10]} 16. Bh2 {[%emt 0:02:29]} Bd6 {[%emt 0:01:35]} 17. Bxd6 {[%emt 0:10:18]} Nxd6 {[%emt 0:00:32]} 18. a4 {[%emt 0:05:17]} a5 {[%emt 0:06:12]} 19. Ne5 {[%emt 0:03:05]} Nd7 {[%emt 0:05:15]} 20. Qc2 {[%emt 0:04:54]} Nb8 {[%emt 0:05:59]} 21. Rb1 {[%emt 0:05:15]} Na6 {[%emt 0:01:17]} 22. Na2 {[%emt 0:00:14]} Qb6 {[%emt 0:07:53]} 23. Qd2 {[%emt 0:05:32]} Bf5 {[%emt 0:11:04]} 24. Bxf5 {[%emt 0:04:09]} Nxf5 {[%emt 0:00:05]} 25. b4 {[%emt 0:00:11]} axb4 {[%emt 0:01:15]} 26. Nxb4 {[%emt 0:00:10]} Nxb4 {[%emt 0:01:43]} 27. Rxb4 {[%emt 0:00:29]} Qc7 {[%emt 0:00:38]} 28. Rdb1 {[%emt 0:04:13]} Nd6 {[%emt 0:00:08]} 29. Qc2 {[%emt 0:02:31]} Ra5 {[%emt 0:04:11]} 30. Nd3 {[%emt 0:02:44]} Rea8 {[%emt 0:00:43]} 31. Nc5 {[%emt 0:02:55]} b5 {[%emt 0:02:34]} 32. Qd1 {[%emt 0:05:06]} Qa7 {[%emt 0:04:40]} 33. axb5 {[%emt 0:02:27]} Nxb5 {[%emt 0:00:04]} 34. Qd3 {[%emt 0:01:18]} Ra1 {[%emt 0:02:20]} 35. Rxa1 {[%emt 0:02:07]} Qxa1+ {[%emt 0:00:01]} 36. Rb1 {[%emt 0:00:10]} Qa2 {[%emt 0:01:14]} 37. Rf1 {[%emt 0:00:13]} Nd6 {[%emt 0:00:51]} 38. Qb1 {[%emt 0:01:44]} Qa7 {[%emt 0:01:28]} 39. Qb4 {[%emt 0:03:52]} Rb8 {[%emt 0:00:24]} 40. Qa4 {[%emt 0:01:41]} Qxa4 {[%emt 0:00:43]} 41. Nxa4 {[%emt 0:30:01]} Nc4 {[%emt 0:30:45]} 42. Nc5 {[%emt 0:00:43]} Ra8 {[%emt 0:00:00]} 43. h4 {[%emt 0:00:00]} Ra5 {[%emt 0:00:00]} 44. h5 {[%emt 0:00:00]} Kf8 {[%emt 0:00:00]} 45. g4 {[%emt 0:00:00]} Ke7 {[%emt 0:00:00]} 46. Kg2 {[%emt 0:00:00]} Ra2 {[%emt 0:00:00]} 47. Kg3 {[%emt 0:00:00]} Nd2 {[%emt 0:00:00]} 48. Rc1 {[%emt 0:00:00]} Kd6 {[%emt 0:00:00]} 49. Kf4 {[%emt 0:00:00]} Nc4 {[%emt 0:00:00]} 50. Kf3 {[%emt 0:00:00]} Nd2+ {[%emt 0:00:00]} 51. Kg3 {[%emt 0:00:00]} Kc7 {[%emt 0:00:00]} 52. Kf4 {[%emt 0:00:00]} Nc4 {[%emt 0:00:00]} 53. f3 {[%emt 0:00:00]} Ra3 {[%emt 0:00:01]} 54. Rb1 {[%emt 0:00:00]} Nd6 {[%emt 0:00:05]} 55. Rg1 {[%emt 0:02:25]} Ra2 {[%emt 0:03:57]} 56. g5 {[%emt 0:05:51]} Rh2 {[%emt 0:00:42]} 57. Kg4 {[%emt 0:01:34]} hxg5 {[%emt 0:02:27]} 58. Kxg5 {[%emt 0:00:16]} Rh3 {[%emt 0:00:28]} 59. Kg4 {[%emt 0:01:37]} Rh2 {[%emt 0:00:02]} 60. Ra1 {[%emt 0:00:43]} Rg2+ {[%emt 0:00:59]} 61. Kf4 {[%emt 0:02:14]} Nc8 {[%emt 0:01:27]} 62. Rh1 {[%emt 0:03:49]} Nd6 {[%emt 0:00:35]} 63. h6 {[%emt 0:01:23]} gxh6 {[%emt 0:00:35]} 64. Rxh6 {[%emt 0:00:02]} Re2 {[%emt 0:00:49]} 65. Rf6 {[%emt 0:03:09]} Rh2 {[%emt 0:00:23]} 66. e4 {[%emt 0:03:38]} dxe4 {[%emt 0:00:20]} 67. Nxe4 {[%emt 0:00:10]} Rh4+ {[%emt 0:00:30]} 68. Ke3 {[%emt 0:00:23]} Nxe4 {[%emt 0:00:52]} 69. Rxf7+ {[%emt 0:00:04]} Kd6 {[%emt 0:00:06]} 70. fxe4 {[%emt 0:00:05]} Rh3+ {[%emt 0:00:16]} 71. Rf3 {[%emt 0:00:34]} Rh6 {[%emt 0:00:55]} 72. Kd3 {[%emt 0:00:48]} Rh1 {[%emt 0:00:13]} 73. Rf6+ {[%emt 0:02:11]} Kd7 {[%emt 0:00:13]} 74. Ke3 {[%emt 0:01:38]} Rd1 {[%emt 0:00:57]} 75. Rh6 {[%emt 0:00:11]} Kc7 {[%emt 0:00:18]} 76. Rh7+ {[%emt 0:00:08]} Kd8 {[%emt 0:00:36]} 77. Rg7 {[%emt 0:00:59]} Kc8 {[%emt 0:00:31]} 78. e5 {[%emt 0:01:59]} Kd8 {[%emt 0:00:37]} 79. Ke4 {[%emt 0:02:33]} Rd2 {[%emt 0:00:08]} 80. e6 {[%emt 0:00:45]} Re2+ {[%emt 0:00:36]} 81. Kf5 {[%emt 0:00:05]} Re1 {[%emt 0:01:04]} 82. Kf6 {[%emt 0:00:24]} Rf1+ {[%emt 0:00:29]} 83. Ke5 {[%emt 0:00:06]} Rd1 {[%emt 0:00:18]} 84. Ra7 {[%emt 0:00:45]} Rd2 {[%emt 0:00:31]} 85. e7+ {[%emt 0:00:58]} Ke8 {[%emt 0:00:13]} 86. Ke6 {[%emt 0:00:04]} Re2+ {[%emt 0:00:15]} 87. Kd6 {[%emt 0:00:07]} Kf7 {[%emt 0:00:29]} 88. Kxc6 {[%emt 0:00:19]} Ke8 {[%emt 0:00:38]} 89. d5 {[%emt 0:00:40]} Rc2+ {[%emt 0:00:52]} 90. Kd6 {[%emt 0:00:30]} Rc8 {[%emt 0:00:27]} 91. Ke6 {[%emt 0:00:31]} Rc6+ {[%emt 0:00:09]} 92. d6 {[%emt 0:00:17]} 1-0

[Event "45th FIDE Olympiad 2024"]
[Site "Budapest"]
[Date "2024.09.12"]
[Round "2.38"]
[White "Mwale, Joseph"]
[Black "Dlamini, Simphiwe"]
[Result "1-0"]
[ECO "C56"]
[WhiteElo "2063"]
[BlackElo "1747"]
[Annotator "NA RC"]
[PlyCount "41"]
[EventDate "2024.09.05"]
[EventType "team-tourn"]
[EventCountry "HUN"]
[SourceTitle "playchess.com"]
[Source "ChessBase"]
[SourceQuality "1"]
[WhiteTeam "Malawi"]
[BlackTeam "Eswatini"]
[WhiteTeamCountry "MWI"]
[TimeControl "40/5400+30:1800+30"]

1. e4 e5 2. Nf3 Nc6 3. Bc4 Nf6 4. d4 Nxe4 5. dxe5 Nc5 6. O-O Be7 7. Nc3 O-O 8. Nd5 h6 9. Be3 Ne6 10. Qd2 d6 11. exd6 Bxd6 12. Bxh6 Ne5 13. Nxe5 Bxe5 14. f4 Bd4+ 15. Kh1 Qh4 16. Bg5 Nxg5 17. fxg5 Be5 18. Ne7+ Kh8 19. Ng6+ fxg6 20. Rxf8+ Kh7 21. Rh8+ 1-0

[Event "45th FIDE Olympiad 2024"]
[Site "Budapest"]
[Date "2024.09.12"]
[Round "2.39"]
[White "Sousa, Andre Ventura"]
[Black "Idani, Pouya"]
[Result "1/2-1/2"]
[ECO "B90"]
[WhiteElo "2403"]
[BlackElo "2599"]
[Annotator "RC"]
[PlyCount "170"]
[EventDate "2024.09.05"]
[EventType "team-tourn"]
[EventCountry "HUN"]
[SourceTitle "playchess.com"]
[Source "ChessBase"]
[SourceQuality "1"]
[WhiteTeam "Portugal"]
[BlackTeam "Iran"]
[WhiteTeamCountry "POR"]
[BlackTeamCountry "IRI"]
[TimeControl "40/5400+30:1800+30"]

1. e4 {[%emt 0:00:02]} c5 {[%emt 0:00:05]} 2. Nf3 {[%emt 0:00:04]} d6 {[%emt 0:00:04]} 3. d4 {[%emt 0:00:03]} cxd4 {[%emt 0:00:05]} 4. Nxd4 {[%emt 0:00:03]} Nf6 {[%emt 0:00:06]} 5. Nc3 {[%emt 0:00:03]} a6 {[%emt 0:00:05]} 6. Bd3 {[%emt 0:00:03]} e5 {[%emt 0:00:07]} 7. Nde2 {[%emt 0:00:03]} Be7 {[%emt 0:00:06]} 8. O-O {[%emt 0:00:05]} O-O {[%emt 0:00:04]} 9. Ng3 {[%emt 0:00:10]} Bg4 {[%emt 0:00:05]} 10. Be2 {[%emt 0:00:03]} Be6 {[%emt 0:00:06]} 11. Be3 {[%emt 0:00:43]} g6 {[%emt 0:02:41]} 12. Qd2 {[%emt 0:01:28]} Nbd7 {[%emt 0:01:47]} 13. a4 {[%emt 0:00:59]} Rc8 {[%emt 0:05:32]} 14. a5 {[%emt 0:02:48]} h5 {[%emt 0:10:51]} 15. f3 {[%emt 0:01:55]} h4 {[%emt 0:03:04]} 16. Nh1 {[%emt 0:00:05]} Nh7 {[%emt 0:06:53]} 17. Nf2 {[%emt 0:04:12]} Bg5 {[%emt 0:04:20]} 18. Bxg5 {[%emt 0:04:50]} Nxg5 {[%emt 0:15:10]} 19. h3 {[%emt 0:10:24]} Rc6 {[%emt 0:03:17]} 20. Nd5 {[%emt 0:03:07]} Bxd5 {[%emt 0:02:01]} 21. exd5 {[%emt 0:00:09]} Rc7 {[%emt 0:01:51]} 22. c4 {[%emt 0:08:34]} Nh7 {[%emt 0:06:05]} 23. b4 {[%emt 0:04:51]} Ndf6 {[%emt 0:03:05]} 24. Rac1 {[%emt 0:13:45]} Nh5 {[%emt 0:03:18]} 25. Rfd1 {[%emt 0:00:08]} Nf4 {[%emt 0:02:35]} 26. Nd3 {[%emt 0:00:57]} Nxd3 {[%emt 0:03:47]} 27. Bxd3 {[%emt 0:00:21]} Nf6 {[%emt 0:03:21]} 28. Qg5 {[%emt 0:07:39]} Nh5 {[%emt 0:01:31]} 29. Qxd8 {[%emt 0:00:04]} Rxd8 {[%emt 0:00:03]} 30. Bf1 {[%emt 0:06:37]} Nf4 {[%emt 0:04:37]} 31. Rb1 {[%emt 0:11:47]} Kf8 {[%emt 0:04:09]} 32. Rb2 {[%emt 0:07:42]} Ke7 {[%emt 0:02:31]} 33. b5 {[%emt 0:00:58]} Rc5 {[%emt 0:04:11]} 34. bxa6 {[%emt 0:00:02]} bxa6 {[%emt 0:00:04]} 35. Ra1 {[%emt 0:00:16]} Rd7 {[%emt 0:00:45]} 36. Rb8 {[%emt 0:01:53]} Ra7 {[%emt 0:00:07]} 37. Kf2 {[%emt 0:02:56]} Nh5 {[%emt 0:01:46]} 38. Ra2 {[%emt 0:01:17]} Nf6 {[%emt 0:02:14]} 39. Rh8 {[%emt 0:02:43]} g5 {[%emt 0:01:11]} 40. g3 {[%emt 0:00:50]} hxg3+ {[%emt 0:00:14]} 41. Kxg3 {[%emt 0:30:06]} Rcc7 {[%emt 0:32:36]} 42. Rb2 {[%emt 0:01:42]} Rc5 {[%emt 0:02:52]} 43. Ra2 {[%emt 0:00:45]} Nd7 {[%emt 0:00:00]} 44. Rh5 {[%emt 0:00:00]} Rb7 {[%emt 0:00:00]} 45. Rxg5 {[%emt 0:00:00]} Rb1 {[%emt 0:00:00]} 46. Kf2 {[%emt 0:00:00]} Rc8 {[%emt 0:00:00]} 47. Bd3 {[%emt 0:00:00]} Rb3 {[%emt 0:00:00]} 48. Bf1 {[%emt 0:00:00]} Nc5 {[%emt 0:00:00]} 49. Rg4 {[%emt 0:00:00]} Rh8 {[%emt 0:00:00]} 50. Kg2 {[%emt 0:00:00]} Rh6 {[%emt 0:00:00]} 51. Be2 {[%emt 0:00:00]} f5 {[%emt 0:00:00]} 52. Rg3 {[%emt 0:00:00]} Rb8 {[%emt 0:00:00]} 53. Bf1 {[%emt 0:00:00]} Kf6 {[%emt 0:00:00]} 54. Kg1 {[%emt 0:00:00]} Rb3 {[%emt 0:00:00]} 55. Kg2 {[%emt 0:00:00]} Rh8 {[%emt 0:00:00]} 56. Be2 {[%emt 0:00:00]} Rb1 {[%emt 0:00:09]} 57. Kh2 {[%emt 0:01:43]} Nb3 {[%emt 0:02:08]} 58. Bd3 {[%emt 0:01:48]} Rc1 {[%emt 0:00:30]} 59. Kg2 {[%emt 0:06:17]} Nc5 {[%emt 0:00:37]} 60. Be2 {[%emt 0:00:40]} Rb1 {[%emt 0:00:18]} 61. Kh2 {[%emt 0:00:13]} Rhb8 {[%emt 0:01:13]} 62. Rg2 {[%emt 0:00:12]} Rc1 {[%emt 0:00:36]} 63. Rg1 {[%emt 0:00:31]} Rc3 {[%emt 0:00:38]} 64. h4 {[%emt 0:01:46]} Rh8 {[%emt 0:00:32]} 65. Kh3 {[%emt 0:00:05]} Rb3 {[%emt 0:00:42]} 66. Bd1 {[%emt 0:00:55]} Rc3 {[%emt 0:00:18]} 67. Rc2 {[%emt 0:00:41]} Rd3 {[%emt 0:01:21]} 68. Rcg2 {[%emt 0:00:51]} e4 {[%emt 0:00:59]} 69. Rg3 {[%emt 0:00:54]} Rd2 {[%emt 0:02:41]} 70. Rg6+ {[%emt 0:00:52]} Ke5 {[%emt 0:00:06]} 71. fxe4 {[%emt 0:00:35]} Nxe4 {[%emt 0:00:09]} 72. Bf3 {[%emt 0:00:29]} Rd3 {[%emt 0:01:09]} 73. Kg2 {[%emt 0:00:19]} Rb8 {[%emt 0:01:21]} 74. Re1 {[%emt 0:00:46]} Kd4 {[%emt 0:01:04]} 75. Bxe4 {[%emt 0:00:12]} Rb2+ {[%emt 0:00:26]} 76. Kg1 {[%emt 0:00:19]} fxe4 {[%emt 0:00:05]} 77. Rg4 {[%emt 0:00:21]} Kxc4 {[%emt 0:00:40]} 78. Rgxe4+ {[%emt 0:00:55]} Kxd5 {[%emt 0:00:06]} 79. Rg4 {[%emt 0:00:04]} Rb5 {[%emt 0:00:58]} 80. Kg2 {[%emt 0:00:49]} Rb2+ {[%emt 0:01:03]} 81. Kg1 {[%emt 0:00:05]} Rb5 {[%emt 0:00:12]} 82. Kg2 {[%emt 0:00:04]} Rd2+ {[%emt 0:01:13]} 83. Kg1 {[%emt 0:00:12]} Rd4 {[%emt 0:00:38]} 84. Rg6 {[%emt 0:01:03]} Rxh4 {[%emt 0:00:40]} 85. Rd1+ {[%emt 0:00:02]} Kc5 {[%emt 0:00:10]} 1/2-1/2

[Event "45th FIDE Olympiad 2024"]
[Site "Budapest"]
[Date "2024.09.12"]
[Round "2.39"]
[White "Mbongeni, Mabuza"]
[Black "Chipanga, Chiletso"]
[Result "1/2-1/2"]
[ECO "D11"]
[WhiteElo "1784"]
[BlackElo "2089"]
[Annotator "NA"]
[PlyCount "128"]
[EventDate "2024.09.05"]
[EventType "team-tourn"]
[EventCountry "HUN"]
[SourceTitle "playchess.com"]
[Source "ChessBase"]
[SourceQuality "1"]
[WhiteTeam "Eswatini"]
[BlackTeam "Malawi"]
[BlackTeamCountry "MWI"]
[TimeControl "40/5400+30:1800+30"]

1. d4 d5 2. Nf3 Nf6 3. g3 Bf5 4. Bg2 e6 5. O-O Be7 6. c4 c6 7. Ne5 Nbd7 8. f4 h5 9. cxd5 exd5 10. h3 Ne4 11. Kh2 f6 12. Nxd7 Qxd7 13. Nc3 O-O-O 14. Nxe4 dxe4 15. Be3 Kb8 16. Qa4 Qd5 17. b4 Qb5 18. Qxb5 cxb5 19. a3 Rc8 20. Rfc1 Rc4 21. Rxc4 bxc4 22. Bd2 Rc8 23. Bc3 e3 24. Bf3 Bd6 25. Kg2 h4 26. g4 Bd7 27. f5 b5 28. Be4 Re8 29. Kf3 Bg3 30. Rd1 Kc7 31. Kxe3 g6 32. Kf3 gxf5 33. Bxf5 Bxf5 34. gxf5 Rg8 35. Rg1 Kd6 36. e4 Rc8 37. Rd1 Rg8 38. Rg1 Rc8 39. Rg2 Rc7 40. Re2 Rf7 41. e5+ Kd5 42. e6 Re7 43. Re4 Bd6 44. Rxh4 a5 45. Ke3 axb4 46. Bxb4 Ra7 47. Rh8 Bxb4 48. axb4 Ra3+ 49. Kd2 Ra2+ 50. Kc3 Ra3+ 51. Kb2 Ra7 52. Rd8+ Ke4 53. Rd7 Ra8 54. e7 Kd3 55. Rd8 c3+ 56. Kb3 c2 57. e8=Q c1=Q 58. Qxb5+ Kd2 59. Rxa8 Qc2+ 60. Ka3 Qc3+ 61. Ka4 Qa1+ 62. Kb3 Qc3+ 63. Ka2 Qc2+ 64. Ka3 Qc3+ 1/2-1/2